[Event "Titled Tuesday Blitz May 10 Early 2022"]
[White "Perez Rodriguez, Jennifer"]
[Black "Samadov, Read"]
[WhiteFideId "3507831"]
[BlackFideId "13417444"]
[WhiteElo "2170"]
[BlackElo "2084"]
[Result "0-1"]
[Round "01"]
[TimeControl "180+1"]
[Date "2022.05.11"]
[WhiteClock "0:00:09"]
[BlackClock "0:00:15"]

1. e4 {[%clk 0:03:00]}  c5 {[%clk 0:02:58]} 2. c3 {[%clk 0:02:58]}  d5 {[%clk 0:02:56]} 3. exd5 {[%clk 0:02:58]}  Qxd5 {[%clk 0:02:57]} 4. d4 {[%clk 0:02:58]}  Nc6 {[%clk 0:02:57]} 5. Nf3 {[%clk 0:02:58]}  Bf5 {[%clk 0:02:58]} 6. Be3 {[%clk 0:02:58]}  Nf6 {[%clk 0:02:58]} 7. c4 {[%clk 0:02:55]}  Qd7 {[%clk 0:02:57]} 8. d5 {[%clk 0:02:53]}  Nb4 {[%clk 0:02:57]} 9. Na3 {[%clk 0:02:54]}  e6 {[%clk 0:02:57]} 10. dxe6 {[%clk 0:02:35]}  Bxe6 {[%clk 0:02:49]} 11. Ne5 {[%clk 0:02:25]}  Qc7 {[%clk 0:02:40]} 12. Qa4+ {[%clk 0:02:10]}  Nd7 {[%clk 0:02:39]} 13. Bf4 {[%clk 0:02:00]}  Nc6 {[%clk 0:02:10]} 14. Ng6 {[%clk 0:01:52]}  Qb6 {[%clk 0:02:03]} 15. Nxh8 {[%clk 0:01:51]}  Qxb2 {[%clk 0:01:57]} 16. Rb1 {[%clk 0:01:49]}  Qc3+ {[%clk 0:01:57]} 17. Bd2 {[%clk 0:01:48]}  Qe5+ {[%clk 0:01:58]} 18. Be2 {[%clk 0:01:37]}  O-O-O {[%clk 0:01:49]} 19. Qb3 {[%clk 0:01:29]}  Nb6 {[%clk 0:01:48]} 20. Qe3 {[%clk 0:01:28]}  Bd6 {[%clk 0:01:29]} 21. Nxf7 {[%clk 0:01:18]}  Bxf7 {[%clk 0:01:25]} 22. Qxe5 {[%clk 0:01:16]}  Nxe5 {[%clk 0:01:25]} 23. O-O {[%clk 0:01:12]}  Nexc4 {[%clk 0:01:22]} 24. Nxc4 {[%clk 0:01:11]}  Nxc4 {[%clk 0:01:21]} 25. Bg5 {[%clk 0:01:06]}  Re8 {[%clk 0:01:20]} 26. Bf3 {[%clk 0:01:03]}  b6 {[%clk 0:01:19]} 27. Rfd1 {[%clk 0:00:57]}  Kc7 {[%clk 0:01:19]} 28. Rbc1 {[%clk 0:00:56]}  Ne5 {[%clk 0:01:02]} 29. Bd5 {[%clk 0:00:55]}  Bg6 {[%clk 0:01:03]} 30. g3 {[%clk 0:00:48]}  Nd3 {[%clk 0:00:55]} 31. Rc3 {[%clk 0:00:47]}  Nb4 {[%clk 0:00:54]} 32. Re3 {[%clk 0:00:44]}  Rxe3 {[%clk 0:00:40]} 33. Bxe3 {[%clk 0:00:45]}  Nxd5 {[%clk 0:00:35]} 34. Rxd5 {[%clk 0:00:46]}  Kc6 {[%clk 0:00:35]} 35. Rd2 {[%clk 0:00:41]}  c4 {[%clk 0:00:35]} 36. Bd4 {[%clk 0:00:39]}  a5 {[%clk 0:00:30]} 37. Bxg7 {[%clk 0:00:36]}  b5 {[%clk 0:00:30]} 38. g4 {[%clk 0:00:31]}  b4 {[%clk 0:00:30]} 39. h4 {[%clk 0:00:30]}  b3 {[%clk 0:00:22]} 40. axb3 {[%clk 0:00:29]}  cxb3 {[%clk 0:00:22]} 41. h5 {[%clk 0:00:27]}  Bc2 {[%clk 0:00:22]} 42. Bb2 {[%clk 0:00:20]}  Bb4 {[%clk 0:00:16]} 43. Re2 {[%clk 0:00:18]}  a4 {[%clk 0:00:16]} 44. Re6+ {[%clk 0:00:13]}  Kd5 {[%clk 0:00:16]} 45. Ra6 {[%clk 0:00:13]}  a3 {[%clk 0:00:14]} 46. Bxa3 {[%clk 0:00:13]}  Bxa3 {[%clk 0:00:15]} 47. Rxa3 {[%clk 0:00:13]}  b2 {[%clk 0:00:15]} 48. Ra5+ {[%clk 0:00:09]}  Kc4 {[%clk 0:00:15]} 0-1


[Site "https://www.chess.com"]

[Event "Titled Tuesday Blitz May 10 Early 2022"]
[White "Petre, Nad-Titus"]
[Black "Johnson, Ben"]
[WhiteFideId "1204165"]
[BlackFideId "2010917"]
[WhiteElo "2354"]
[BlackElo "2202"]
[Result "0-1"]
[Round "01"]
[TimeControl "180+1"]
[Date "2022.05.11"]
[WhiteClock "0:00:10"]
[BlackClock "0:00:14"]

1. e4 {[%clk 0:02:59]}  c5 {[%clk 0:02:59]} 2. Nc3 {[%clk 0:02:59]}  Nc6 {[%clk 0:02:59]} 3. Bb5 {[%clk 0:02:59]}  Nd4 {[%clk 0:02:57]} 4. Nf3 {[%clk 0:03:00]}  a6 {[%clk 0:02:55]} 5. Bd3 {[%clk 0:03:00]}  Nc6 {[%clk 0:02:54]} 6. O-O {[%clk 0:02:53]}  d6 {[%clk 0:02:53]} 7. Be2 {[%clk 0:02:53]}  Bg4 {[%clk 0:02:49]} 8. h3 {[%clk 0:02:33]}  Bxf3 {[%clk 0:02:48]} 9. Bxf3 {[%clk 0:02:33]}  Nf6 {[%clk 0:02:48]} 10. g3 {[%clk 0:02:29]}  e6 {[%clk 0:02:32]} 11. Bg2 {[%clk 0:02:28]}  Be7 {[%clk 0:02:33]} 12. d3 {[%clk 0:02:27]}  O-O {[%clk 0:02:32]} 13. f4 {[%clk 0:02:17]}  Rb8 {[%clk 0:02:29]} 14. f5 {[%clk 0:02:13]}  b5 {[%clk 0:01:58]} 15. Bd2 {[%clk 0:02:13]}  Nd4 {[%clk 0:01:54]} 16. g4 {[%clk 0:02:01]}  b4 {[%clk 0:01:50]} 17. Ne2 {[%clk 0:01:47]}  Nxe2+ {[%clk 0:01:48]} 18. Qxe2 {[%clk 0:01:48]}  Nd7 {[%clk 0:01:48]} 19. Qf3 {[%clk 0:01:05]}  Bg5 {[%clk 0:01:43]} 20. Bxg5 {[%clk 0:00:53]}  Qxg5 {[%clk 0:01:44]} 21. Qg3 {[%clk 0:00:52]}  Ne5 {[%clk 0:01:33]} 22. Rf4 {[%clk 0:00:50]}  c4 {[%clk 0:01:17]} 23. d4 {[%clk 0:00:47]}  Nc6 {[%clk 0:01:13]} 24. h4 {[%clk 0:00:43]}  Qd8 {[%clk 0:01:12]} 25. d5 {[%clk 0:00:37]}  exd5 {[%clk 0:01:09]} 26. exd5 {[%clk 0:00:38]}  Ne5 {[%clk 0:01:07]} 27. g5 {[%clk 0:00:35]}  f6 {[%clk 0:01:07]} 28. Raf1 {[%clk 0:00:31]}  a5 {[%clk 0:01:05]} 29. Kh1 {[%clk 0:00:31]}  a4 {[%clk 0:01:05]} 30. b3 {[%clk 0:00:25]}  axb3 {[%clk 0:01:02]} 31. axb3 {[%clk 0:00:25]}  c3 {[%clk 0:01:01]} 32. gxf6 {[%clk 0:00:20]}  Qxf6 {[%clk 0:00:57]} 33. Be4 {[%clk 0:00:20]}  Ra8 {[%clk 0:00:55]} 34. Rg1 {[%clk 0:00:20]}  Rf7 {[%clk 0:00:52]} 35. Rf2 {[%clk 0:00:21]}  Ra2 {[%clk 0:00:45]} 36. Rfg2 {[%clk 0:00:21]}  Nd7 {[%clk 0:00:39]} 37. Qh3 {[%clk 0:00:21]}  Nc5 {[%clk 0:00:38]} 38. Bf3 {[%clk 0:00:16]}  Raa7 {[%clk 0:00:32]} 39. h5 {[%clk 0:00:16]}  h6 {[%clk 0:00:27]} 40. Rg6 {[%clk 0:00:15]}  Qe5 {[%clk 0:00:23]} 41. Rxh6 {[%clk 0:00:15]}  Qxf5 {[%clk 0:00:20]} 42. Qxf5 {[%clk 0:00:05]}  Rxf5 {[%clk 0:00:21]} 43. Rhg6 {[%clk 0:00:06]}  Rxf3 {[%clk 0:00:19]} 44. h6 {[%clk 0:00:07]}  Rh3+ {[%clk 0:00:15]} 45. Kg2 {[%clk 0:00:07]}  Rxh6 {[%clk 0:00:16]} 46. Rxh6 {[%clk 0:00:07]}  gxh6 {[%clk 0:00:17]} 47. Kf3+ {[%clk 0:00:08]}  Kf7 {[%clk 0:00:16]} 48. Ke3 {[%clk 0:00:08]}  Kf6 {[%clk 0:00:16]} 49. Rh1 {[%clk 0:00:09]}  Kg6 {[%clk 0:00:16]} 50. Rg1+ {[%clk 0:00:10]}  Kh7 {[%clk 0:00:16]} 51. Rf1 {[%clk 0:00:10]}  Re7+ {[%clk 0:00:16]} 52. Kf3 {[%clk 0:00:09]}  Rf7+ {[%clk 0:00:15]} 53. Kg2 {[%clk 0:00:09]}  Rxf1 {[%clk 0:00:15]} 54. Kxf1 {[%clk 0:00:10]}  Nxb3 {[%clk 0:00:14]} 0-1


[Site "https://www.chess.com"]

[Event "Titled Tuesday Blitz May 10 Early 2022"]
[White "Petrova, Irina"]
[Black "Arabidze, Meri"]
[WhiteFideId "14124122"]
[BlackFideId "13604040"]
[WhiteElo "1993"]
[BlackElo "2335"]
[Result "0-1"]
[Round "01"]
[TimeControl "180+1"]
[Date "2022.05.11"]
[WhiteClock "0:00:14"]
[BlackClock "0:01:11"]

1. e4 {[%clk 0:02:59]}  c5 {[%clk 0:02:59]} 2. Nf3 {[%clk 0:02:59]}  e6 {[%clk 0:02:59]} 3. b3 {[%clk 0:02:59]}  d5 {[%clk 0:02:58]} 4. exd5 {[%clk 0:02:58]}  exd5 {[%clk 0:02:59]} 5. Bb5+ {[%clk 0:02:53]}  Nc6 {[%clk 0:02:58]} 6. d4 {[%clk 0:02:52]}  Nf6 {[%clk 0:02:58]} 7. O-O {[%clk 0:02:48]}  Be7 {[%clk 0:02:56]} 8. Re1 {[%clk 0:02:38]}  O-O {[%clk 0:02:56]} 9. Bb2 {[%clk 0:02:33]}  Bg4 {[%clk 0:02:41]} 10. dxc5 {[%clk 0:01:53]}  Bxc5 {[%clk 0:02:42]} 11. Qd3 {[%clk 0:01:53]}  Qb6 {[%clk 0:02:38]} 12. Rf1 {[%clk 0:01:16]}  Nb4 {[%clk 0:02:33]} 13. Qe2 {[%clk 0:01:07]}  a6 {[%clk 0:02:25]} 14. a3 {[%clk 0:01:00]}  Nxc2 {[%clk 0:02:19]} 15. Qxc2 {[%clk 0:00:54]}  axb5 {[%clk 0:02:14]} 16. b4 {[%clk 0:00:47]}  Be7 {[%clk 0:02:08]} 17. Nbd2 {[%clk 0:00:43]}  Rac8 {[%clk 0:02:02]} 18. Qd3 {[%clk 0:00:34]}  Bh5 {[%clk 0:02:02]} 19. Ne5 {[%clk 0:00:31]}  Bd6 {[%clk 0:01:57]} 20. Ndf3 {[%clk 0:00:29]}  Rfd8 {[%clk 0:01:46]} 21. Rac1 {[%clk 0:00:27]}  Bg6 {[%clk 0:01:36]} 22. Nxg6 {[%clk 0:00:26]}  hxg6 {[%clk 0:01:37]} 23. Bxf6 {[%clk 0:00:25]}  gxf6 {[%clk 0:01:35]} 24. Rxc8 {[%clk 0:00:24]}  Rxc8 {[%clk 0:01:36]} 25. Qxd5 {[%clk 0:00:24]}  Rc3 {[%clk 0:01:32]} 26. Nd4 {[%clk 0:00:20]}  Rd3 {[%clk 0:01:24]} 27. Qxb5 {[%clk 0:00:15]}  Qxd4 {[%clk 0:01:22]} 28. Qxb7 {[%clk 0:00:15]}  Rd1 {[%clk 0:01:16]} 29. Qb5 {[%clk 0:00:14]}  Kg7 {[%clk 0:01:11]} 30. Rxd1 {[%clk 0:00:13]}  Qxd1+ {[%clk 0:01:11]} 31. Qf1 {[%clk 0:00:14]}  Bxh2+ {[%clk 0:01:11]} 0-1


[Site "https://www.chess.com"]

[Event "Titled Tuesday Blitz May 10 Early 2022"]
[White "Piesik, Piotr"]
[Black "Goldin, Roman"]
[WhiteFideId "1136194"]
[BlackFideId "2803860"]
[WhiteElo "2190"]
[BlackElo "2312"]
[Result "1-0"]
[Round "01"]
[TimeControl "180+1"]
[Date "2022.05.11"]
[WhiteClock "0:00:44"]
[BlackClock "0:00:21"]

1. Nf3 {[%clk 0:02:57]}  Nf6 {[%clk 0:02:58]} 2. g3 {[%clk 0:02:55]}  b5 {[%clk 0:02:57]} 3. Bg2 {[%clk 0:02:55]}  Bb7 {[%clk 0:02:58]} 4. O-O {[%clk 0:02:55]}  c5 {[%clk 0:02:57]} 5. d3 {[%clk 0:02:53]}  g6 {[%clk 0:02:53]} 6. e4 {[%clk 0:02:51]}  d6 {[%clk 0:02:53]} 7. a4 {[%clk 0:02:50]}  b4 {[%clk 0:02:52]} 8. Nbd2 {[%clk 0:02:49]}  Bg7 {[%clk 0:02:52]} 9. Nb3 {[%clk 0:02:47]}  O-O {[%clk 0:02:44]} 10. Nfd2 {[%clk 0:02:44]}  Qc7 {[%clk 0:02:42]} 11. a5 {[%clk 0:02:41]}  Nc6 {[%clk 0:02:38]} 12. a6 {[%clk 0:02:35]}  Bc8 {[%clk 0:02:37]} 13. Nc4 {[%clk 0:02:36]}  Nd7 {[%clk 0:02:33]} 14. f4 {[%clk 0:02:30]}  Ndb8 {[%clk 0:02:30]} 15. e5 {[%clk 0:02:28]}  Bxa6 {[%clk 0:02:27]} 16. exd6 {[%clk 0:02:23]}  exd6 {[%clk 0:02:26]} 17. f5 {[%clk 0:02:16]}  Re8 {[%clk 0:02:20]} 18. f6 {[%clk 0:02:05]}  Bf8 {[%clk 0:02:19]} 19. Bf4 {[%clk 0:02:05]}  Bb7 {[%clk 0:02:18]} 20. Nxc5 {[%clk 0:02:01]}  Bc8 {[%clk 0:01:54]} 21. Ne4 {[%clk 0:01:52]}  Rd8 {[%clk 0:01:22]} 22. Ne3 {[%clk 0:01:37]}  Be6 {[%clk 0:01:21]} 23. Ng5 {[%clk 0:01:34]}  Qd7 {[%clk 0:01:17]} 24. Nxe6 {[%clk 0:01:33]}  fxe6 {[%clk 0:00:58]} 25. f7+ {[%clk 0:01:24]}  Kh8 {[%clk 0:00:51]} 26. Bg5 {[%clk 0:01:22]}  Be7 {[%clk 0:00:48]} 27. Qf3 {[%clk 0:01:05]}  Kg7 {[%clk 0:00:36]} 28. Bf6+ {[%clk 0:00:47]}  Kf8 {[%clk 0:00:29]} 29. Ng4 {[%clk 0:00:47]}  d5 {[%clk 0:00:21]} 30. Qf4 {[%clk 0:00:44]} 1-0


[Site "https://www.chess.com"]

[Event "Titled Tuesday Blitz May 10 Early 2022"]
[White "Pinheiro, Iung Alicio de O."]
[Black "Quirke, Jeffrey"]
[WhiteFideId "2104350"]
[BlackFideId "2013029"]
[WhiteElo "2283"]
[BlackElo "2135"]
[Result "1-0"]
[Round "01"]
[TimeControl "180+1"]
[Date "2022.05.11"]
[WhiteClock "0:01:05"]
[BlackClock "0:00:19"]

1. c4 {[%clk 0:02:57]}  c5 {[%clk 0:02:57]} 2. g3 {[%clk 0:02:57]}  g6 {[%clk 0:02:57]} 3. Bg2 {[%clk 0:02:57]}  Bg7 {[%clk 0:02:57]} 4. Nc3 {[%clk 0:02:56]}  Nc6 {[%clk 0:02:57]} 5. a3 {[%clk 0:02:53]}  e5 {[%clk 0:02:53]} 6. b4 {[%clk 0:02:52]}  cxb4 {[%clk 0:02:50]} 7. axb4 {[%clk 0:02:52]}  Nge7 {[%clk 0:02:35]} 8. b5 {[%clk 0:02:41]}  Nd4 {[%clk 0:02:34]} 9. Ba3 {[%clk 0:02:35]}  O-O {[%clk 0:02:29]} 10. e3 {[%clk 0:02:21]}  Ne6 {[%clk 0:02:28]} 11. Nge2 {[%clk 0:02:16]}  Re8 {[%clk 0:02:12]} 12. Ne4 {[%clk 0:02:04]}  Nf5 {[%clk 0:01:35]} 13. N2c3 {[%clk 0:02:01]}  Ned4 {[%clk 0:01:03]} 14. exd4 {[%clk 0:01:42]}  exd4 {[%clk 0:01:02]} 15. Nd5 {[%clk 0:01:42]}  d3 {[%clk 0:00:58]} 16. O-O {[%clk 0:01:39]}  d6 {[%clk 0:00:41]} 17. Qb3 {[%clk 0:01:18]}  Be6 {[%clk 0:00:39]} 18. Bb2 {[%clk 0:01:14]}  Bxd5 {[%clk 0:00:37]} 19. cxd5 {[%clk 0:01:11]}  Rxe4 {[%clk 0:00:19]} 20. Bxe4 {[%clk 0:01:08]}  Bxb2 {[%clk 0:00:18]} 21. Qxb2 {[%clk 0:01:08]}  Ne7 {[%clk 0:00:19]} 22. h4 {[%clk 0:01:05]} 1-0


[Site "https://www.chess.com"]

[Event "Titled Tuesday Blitz May 10 Early 2022"]
[White "Prieto Aranguren, Alain"]
[Black "Solovchuk, Oleksiy"]
[WhiteFideId "2268906"]
[BlackFideId "14115220"]
[WhiteElo "2235"]
[BlackElo "2305"]
[Result "0-1"]
[Round "01"]
[TimeControl "180+1"]
[Date "2022.05.11"]
[WhiteClock "0:00:06"]
[BlackClock "0:00:09"]

1. d4 {[%clk 0:03:00]}  Nf6 {[%clk 0:03:00]} 2. c4 {[%clk 0:02:59]}  e6 {[%clk 0:03:00]} 3. Nc3 {[%clk 0:02:59]}  Bb4 {[%clk 0:03:00]} 4. e3 {[%clk 0:02:59]}  O-O {[%clk 0:02:55]} 5. Bd3 {[%clk 0:02:58]}  Re8 {[%clk 0:02:52]} 6. Nf3 {[%clk 0:02:51]}  d5 {[%clk 0:02:51]} 7. O-O {[%clk 0:02:51]}  Nc6 {[%clk 0:02:41]} 8. Bd2 {[%clk 0:02:46]}  Bf8 {[%clk 0:02:29]} 9. Rc1 {[%clk 0:02:45]}  h6 {[%clk 0:02:29]} 10. Re1 {[%clk 0:02:42]}  dxc4 {[%clk 0:02:25]} 11. Bxc4 {[%clk 0:02:42]}  e5 {[%clk 0:02:25]} 12. dxe5 {[%clk 0:02:36]}  Nxe5 {[%clk 0:02:24]} 13. Nxe5 {[%clk 0:02:36]}  Rxe5 {[%clk 0:02:25]} 14. e4 {[%clk 0:02:28]}  c6 {[%clk 0:02:12]} 15. Bf4 {[%clk 0:02:25]}  Re8 {[%clk 0:02:06]} 16. Qb3 {[%clk 0:02:21]}  Qe7 {[%clk 0:01:58]} 17. Rcd1 {[%clk 0:02:15]}  b5 {[%clk 0:01:57]} 18. Bf1 {[%clk 0:02:05]}  Be6 {[%clk 0:01:55]} 19. Qc2 {[%clk 0:02:01]}  Qc5 {[%clk 0:01:55]} 20. Be3 {[%clk 0:01:58]}  Qh5 {[%clk 0:01:53]} 21. Be2 {[%clk 0:01:56]}  Ng4 {[%clk 0:01:44]} 22. Bf4 {[%clk 0:01:49]}  Bc5 {[%clk 0:01:42]} 23. Rf1 {[%clk 0:01:39]}  Qh4 {[%clk 0:01:30]} 24. Bg3 {[%clk 0:01:34]}  Qg5 {[%clk 0:01:30]} 25. Kh1 {[%clk 0:01:06]}  Rac8 {[%clk 0:01:22]} 26. h3 {[%clk 0:00:51]}  Ne3 {[%clk 0:01:21]} 27. fxe3 {[%clk 0:00:49]}  Qxg3 {[%clk 0:01:21]} 28. Rf3 {[%clk 0:00:50]}  Qe5 {[%clk 0:01:21]} 29. Rdf1 {[%clk 0:00:46]}  Bd6 {[%clk 0:01:20]} 30. Kg1 {[%clk 0:00:43]}  Qh2+ {[%clk 0:01:02]} 31. Kf2 {[%clk 0:00:43]}  Be7 {[%clk 0:01:02]} 32. Rf4 {[%clk 0:00:40]}  Bg5 {[%clk 0:01:00]} 33. Qc1 {[%clk 0:00:34]}  Bxh3 {[%clk 0:00:53]} 34. Rg1 {[%clk 0:00:27]}  b4 {[%clk 0:00:39]} 35. Bf3 {[%clk 0:00:17]}  bxc3 {[%clk 0:00:31]} 36. bxc3 {[%clk 0:00:16]}  Bxf4 {[%clk 0:00:23]} 37. exf4 {[%clk 0:00:16]}  Rb8 {[%clk 0:00:19]} 38. Rh1 {[%clk 0:00:15]}  Rb2+ {[%clk 0:00:19]} 39. Ke3 {[%clk 0:00:11]}  Qxh1 {[%clk 0:00:17]} 40. Qxh1 {[%clk 0:00:11]}  Be6 {[%clk 0:00:17]} 41. Qc1 {[%clk 0:00:11]}  Rxa2 {[%clk 0:00:17]} 42. f5 {[%clk 0:00:11]}  Bc4 {[%clk 0:00:17]} 43. f6 {[%clk 0:00:11]}  gxf6 {[%clk 0:00:16]} 44. Kd4 {[%clk 0:00:11]}  Be6 {[%clk 0:00:14]} 45. Qxh6 {[%clk 0:00:11]}  Rd8+ {[%clk 0:00:13]} 46. Kc5 {[%clk 0:00:10]}  Ra5+ {[%clk 0:00:12]} 47. Kxc6 {[%clk 0:00:10]}  Ra6+ {[%clk 0:00:11]} 48. Kb7 {[%clk 0:00:09]}  Rb6+ {[%clk 0:00:11]} 49. Kxa7 {[%clk 0:00:08]}  Rdb8 {[%clk 0:00:07]} 50. Qxf6 {[%clk 0:00:07]}  R6b7+ {[%clk 0:00:07]} 51. Ka6 {[%clk 0:00:07]}  Bc4+ {[%clk 0:00:08]} 52. Ka5 {[%clk 0:00:06]}  Ra7+ {[%clk 0:00:09]} 0-1


[Site "https://www.chess.com"]

[Event "Titled Tuesday Blitz May 10 Early 2022"]
[White "Redzisz, Michal"]
[Black "Barp, Alberto"]
[WhiteFideId "21816107"]
[BlackFideId "872555"]
[WhiteElo "2004"]
[BlackElo "2229"]
[Result "1-0"]
[Round "01"]
[TimeControl "180+1"]
[Date "2022.05.11"]
[WhiteClock "0:00:12"]
[BlackClock "0:00:04"]

1. Nf3 {[%clk 0:03:00]}  c5 {[%clk 0:02:50]} 2. e4 {[%clk 0:02:59]}  a6 {[%clk 0:02:49]} 3. c3 {[%clk 0:02:58]}  d5 {[%clk 0:02:47]} 4. exd5 {[%clk 0:02:58]}  Nf6 {[%clk 0:02:47]} 5. d4 {[%clk 0:02:58]}  cxd4 {[%clk 0:02:46]} 6. cxd4 {[%clk 0:02:56]}  Nxd5 {[%clk 0:02:43]} 7. Nc3 {[%clk 0:02:56]}  Nc6 {[%clk 0:02:43]} 8. Bc4 {[%clk 0:02:51]}  Be6 {[%clk 0:02:37]} 9. Qe2 {[%clk 0:02:35]}  Nxc3 {[%clk 0:02:26]} 10. bxc3 {[%clk 0:02:35]}  Bxc4 {[%clk 0:02:26]} 11. Qxc4 {[%clk 0:02:36]}  e6 {[%clk 0:02:26]} 12. Rb1 {[%clk 0:02:30]}  Qd7 {[%clk 0:02:20]} 13. O-O {[%clk 0:02:26]}  Be7 {[%clk 0:02:17]} 14. Bf4 {[%clk 0:02:25]}  Rc8 {[%clk 0:02:14]} 15. Qe2 {[%clk 0:02:05]}  O-O {[%clk 0:02:12]} 16. Rfd1 {[%clk 0:01:50]}  Rfd8 {[%clk 0:02:09]} 17. c4 {[%clk 0:01:49]}  Bf6 {[%clk 0:02:02]} 18. d5 {[%clk 0:01:45]}  exd5 {[%clk 0:02:01]} 19. Rxd5 {[%clk 0:01:43]}  Qe6 {[%clk 0:01:41]} 20. Qd2 {[%clk 0:01:23]}  b5 {[%clk 0:01:26]} 21. Re1 {[%clk 0:01:19]}  bxc4 {[%clk 0:00:53]} 22. Rxe6 {[%clk 0:01:17]}  fxe6 {[%clk 0:00:54]} 23. Rxd8+ {[%clk 0:01:13]}  Rxd8 {[%clk 0:00:54]} 24. Qe2 {[%clk 0:01:13]}  Kf7 {[%clk 0:00:49]} 25. g4 {[%clk 0:01:00]}  Rd3 {[%clk 0:00:44]} 26. Qe4 {[%clk 0:00:46]}  Nd4 {[%clk 0:00:34]} 27. Nxd4 {[%clk 0:00:40]}  Rxd4 {[%clk 0:00:34]} 28. Qb7+ {[%clk 0:00:40]}  Kg6 {[%clk 0:00:32]} 29. Be3 {[%clk 0:00:40]}  Rxg4+ {[%clk 0:00:30]} 30. Kf1 {[%clk 0:00:40]}  c3 {[%clk 0:00:30]} 31. Qxa6 {[%clk 0:00:36]}  Rb4 {[%clk 0:00:28]} 32. Qxe6 {[%clk 0:00:34]}  h5 {[%clk 0:00:18]} 33. Qe8+ {[%clk 0:00:33]}  Kf5 {[%clk 0:00:13]} 34. Qxh5+ {[%clk 0:00:34]}  Ke6 {[%clk 0:00:13]} 35. Qc5 {[%clk 0:00:29]}  Re4 {[%clk 0:00:11]} 36. Qc6+ {[%clk 0:00:25]}  Kf5 {[%clk 0:00:11]} 37. Qd5+ {[%clk 0:00:22]}  Re5 {[%clk 0:00:12]} 38. Qf7 {[%clk 0:00:18]}  Re4 {[%clk 0:00:09]} 39. Qh5+ {[%clk 0:00:18]}  Ke6 {[%clk 0:00:09]} 40. Qe8+ {[%clk 0:00:19]}  Kd5 {[%clk 0:00:10]} 41. Qa8+ {[%clk 0:00:18]}  Ke5 {[%clk 0:00:09]} 42. Qa5+ {[%clk 0:00:17]}  Ke6 {[%clk 0:00:09]} 43. Qb6+ {[%clk 0:00:16]}  Kf5 {[%clk 0:00:08]} 44. Qc5+ {[%clk 0:00:17]}  Kg6 {[%clk 0:00:08]} 45. Ke2 {[%clk 0:00:16]}  Rh4 {[%clk 0:00:07]} 46. a4 {[%clk 0:00:13]}  Rxa4 {[%clk 0:00:07]} 47. Kf3 {[%clk 0:00:12]}  Rh4 {[%clk 0:00:07]} 48. Kg3 {[%clk 0:00:12]}  Rh5 {[%clk 0:00:07]} 49. Qc4 {[%clk 0:00:11]}  Rf5 {[%clk 0:00:04]} 50. Qe4 {[%clk 0:00:11]}  Be5+ {[%clk 0:00:05]} 51. f4 {[%clk 0:00:11]}  Bf6 {[%clk 0:00:04]} 52. Kg4 {[%clk 0:00:11]}  Kf7 {[%clk 0:00:04]} 53. Qxf5 {[%clk 0:00:12]}  g6 {[%clk 0:00:04]} 54. Qd5+ {[%clk 0:00:12]} 1-0


[Site "https://www.chess.com"]

[Event "Titled Tuesday Blitz May 10 Early 2022"]
[White "Rozman, Levy"]
[Black "Itkis, Boris"]
[WhiteFideId "2039877"]
[BlackFideId "1209167"]
[WhiteElo "2376"]
[BlackElo "2207"]
[Result "1-0"]
[Round "01"]
[TimeControl "180+1"]
[Date "2022.05.11"]
[WhiteClock "0:00:54"]
[BlackClock "0:00:20"]

1. d4 {[%clk 0:02:57]}  Nf6 {[%clk 0:02:59]} 2. Bg5 {[%clk 0:02:56]}  d5 {[%clk 0:02:58]} 3. Nd2 {[%clk 0:02:56]}  Bf5 {[%clk 0:02:57]} 4. e3 {[%clk 0:02:55]}  c6 {[%clk 0:02:57]} 5. Bd3 {[%clk 0:02:55]}  Bg6 {[%clk 0:02:56]} 6. f4 {[%clk 0:02:54]}  e6 {[%clk 0:02:57]} 7. Ngf3 {[%clk 0:02:53]}  Nbd7 {[%clk 0:02:56]} 8. O-O {[%clk 0:02:53]}  h6 {[%clk 0:02:56]} 9. Bxg6 {[%clk 0:02:33]}  fxg6 {[%clk 0:02:55]} 10. Bh4 {[%clk 0:02:32]}  Be7 {[%clk 0:02:53]} 11. Ne5 {[%clk 0:02:27]}  Nf8 {[%clk 0:02:42]} 12. c4 {[%clk 0:02:18]}  Qb6 {[%clk 0:02:31]} 13. Qc2 {[%clk 0:02:13]}  O-O-O {[%clk 0:01:57]} 14. c5 {[%clk 0:02:11]}  Qc7 {[%clk 0:01:55]} 15. Nxg6 {[%clk 0:02:06]}  Nxg6 {[%clk 0:01:48]} 16. Qxg6 {[%clk 0:02:07]}  Rdg8 {[%clk 0:01:48]} 17. b4 {[%clk 0:02:03]}  h5 {[%clk 0:01:33]} 18. Nf3 {[%clk 0:01:56]}  Bd8 {[%clk 0:01:17]} 19. Ng5 {[%clk 0:01:41]}  Rh6 {[%clk 0:01:12]} 20. Qd3 {[%clk 0:01:36]}  Qd7 {[%clk 0:01:03]} 21. Nf3 {[%clk 0:01:27]}  Ne4 {[%clk 0:01:01]} 22. Ne5 {[%clk 0:01:23]}  Qc7 {[%clk 0:00:58]} 23. Bxd8 {[%clk 0:01:22]}  Qxd8 {[%clk 0:00:58]} 24. b5 {[%clk 0:01:20]}  cxb5 {[%clk 0:00:42]} 25. c6 {[%clk 0:01:13]}  Qb6 {[%clk 0:00:36]} 26. Rfc1 {[%clk 0:01:09]}  g5 {[%clk 0:00:23]} 27. Rab1 {[%clk 0:01:04]}  a6 {[%clk 0:00:22]} 28. a4 {[%clk 0:01:03]}  gxf4 {[%clk 0:00:21]} 29. exf4 {[%clk 0:01:02]}  Nd6 {[%clk 0:00:18]} 30. cxb7+ {[%clk 0:00:55]}  Kxb7 {[%clk 0:00:18]} 31. Rc6 {[%clk 0:00:54]}  Qxc6 {[%clk 0:00:18]} 32. Nxc6 {[%clk 0:00:55]}  Kxc6 {[%clk 0:00:19]} 33. axb5+ {[%clk 0:00:55]}  axb5 {[%clk 0:00:20]} 34. Qa3 {[%clk 0:00:54]}  Nc4 {[%clk 0:00:20]} 35. Qc5+ {[%clk 0:00:54]}  Kd7 {[%clk 0:00:21]} 36. Rxb5 {[%clk 0:00:53]}  Rc8 {[%clk 0:00:20]} 37. Rb7+ {[%clk 0:00:54]}  Kd8 {[%clk 0:00:20]} 38. Qe7# {[%clk 0:00:54]} 1-0


[Site "https://www.chess.com"]